Workbook

Sheet Chêne
A1: Essence | B1: Fournisseur | C1: Epaisseur (mm) | D1: Largeur (mm) | E1: Longueur (m) | F1: Nb de pièces | G1: Réference | H1: Volume Fournisseur | I1: Commentaire | J1: Volume | K1: Qualité | L1: Transport | M1: Prix m³ | N1: Prix | O1: Total | P1: =SUM(O:O) -> 212.491
A2: Chêne | B2: Beauvoir | C2: 18 | H2: 13.619 | J2: =IF(AND(F2="",D2="",H2=""),"",IF(AND(F2="",D2=""),H2,IF(F2="",(C2/1000)*(D2/1000)*E2,(C2/1000)*(D2/1000)*E2*F2))) -> 13.619 | M2: 10 | N2: =IF(J2="","",J2*M2) -> 136.19 | O2: =IF(A2="","",IF(AND(A3=A2,B3=B2),"",SUM($N$2:N2)-SUM($O1:O$2))) -> 
A3: Chêne | B3: Beauvoir | C3: 34 | H3: 2.984 | J3: =IF(AND(F3="",D3="",H3=""),"",IF(AND(F3="",D3=""),H3,IF(F3="",(C3/1000)*(D3/1000)*E3,(C3/1000)*(D3/1000)*E3*F3))) -> 2.984 | M3: 10 | N3: =IF(J3="","",J3*M3) -> 29.84 | O3: =IF(A3="","",IF(AND(A4=A3,B4=B3),"",SUM($N$2:N3)-SUM($O$2:O2))) -> 166.03
A4: Chêne | B4: Tarteret | C4: 27 | D4: 100 | E4: 2.2 | F4: 40 | J4: =IF(AND(F4="",D4="",H4=""),"",IF(AND(F4="",D4=""),H4,IF(F4="",(C4/1000)*(D4/1000)*E4,(C4/1000)*(D4/1000)*E4*F4))) -> 0.2376 | M4: 10 | N4: =IF(J4="","",J4*M4) -> 2.376 | O4: =IF(A4="","",IF(AND(A5=A4,B5=B4),"",SUM($N$2:N4)-SUM($O$2:O3))) -> 2.376
A5: Chêne | B5: VD | C5: 27 | G5: Colis 8 | H5: 0.421 | J5: =IF(AND(F5="",D5="",H5=""),"",IF(AND(F5="",D5=""),H5,IF(F5="",(C5/1000)*(D5/1000)*E5,(C5/1000)*(D5/1000)*E5*F5))) -> 0.421 | M5: 10 | N5: =IF(J5="","",J5*M5) -> 4.21 | O5: =IF(A5="","",IF(AND(A6=A5,B6=B5),"",SUM($N$2:N5)-SUM($O$2:O4))) -> 4.21
A6: Chêne Abouté | B6: Scierie du Maine | C6: 22 | D6: 1100 | E6: 3 | F6: 20 | I6: PNX | J6: =IF(AND(F6="",D6="",H6=""),"",IF(AND(F6="",D6=""),H6,IF(F6="",(C6/1000)*(D6/1000)*E6,(C6/1000)*(D6/1000)*E6*F6))) -> 1.452 | M6: 10 | N6: =IF(J6="","",J6*M6) -> 14.52 | O6: =IF(A6="","",IF(AND(A7=A6,B7=B6),"",SUM($N$2:N6)-SUM($O$2:O5))) -> 
A7: Chêne Abouté | B7: Scierie du Maine | C7: 22 | D7: 1100 | E7: 2.5 | F7: 11 | I7: PNX | J7: =IF(AND(F7="",D7="",H7=""),"",IF(AND(F7="",D7=""),H7,IF(F7="",(C7/1000)*(D7/1000)*E7,(C7/1000)*(D7/1000)*E7*F7))) -> 0.6655 | M7: 10 | N7: =IF(J7="","",J7*M7) -> 6.655 | O7: =IF(A7="","",IF(AND(A8=A7,B8=B7),"",SUM($N$2:N7)-SUM($O$2:O6))) -> 21.175
A8: Chêne Blanc | B8: Peltier | E8: 3 | H8: 1.87 | I8: Déligné | J8: =IF(AND(F8="",D8="",H8=""),"",IF(AND(F8="",D8=""),H8,IF(F8="",(C8/1000)*(D8/1000)*E8,(C8/1000)*(D8/1000)*E8*F8))) -> 1.87 | M8: 10 | N8: =IF(J8="","",J8*M8) -> 18.7 | O8: =IF(A8="","",IF(AND(A9=A8,B9=B8),"",SUM($N$2:N8)-SUM($O$2:O7))) -> 18.7
O9: =IF(A9="","",IF(AND(A10=A9,B10=B9),"",SUM($N$2:N9)-SUM($O$2:O8))) -> 
O10: =IF(A10="","",IF(AND(A11=A10,B11=B10),"",SUM($N$2:N10)-SUM($O$2:O9))) -> 
O11: =IF(A11="","",IF(AND(A12=A11,B12=B11),"",SUM($N$2:N11)-SUM($O$2:O10))) -> 
O12: =IF(A12="","",IF(AND(A13=A12,B13=B12),"",SUM($N$2:N12)-SUM($O$2:O11))) -> 
O13: =IF(A13="","",IF(AND(A14=A13,B14=B13),"",SUM($N$2:N13)-SUM($O$2:O12))) -> 
O14: =IF(A14="","",IF(AND(A15=A14,B15=B14),"",SUM($N$2:N14)-SUM($O$2:O13))) -> 
O15: =IF(A15="","",IF(AND(A16=A15,B16=B15),"",SUM($N$2:N15)-SUM($O$2:O14))) -> 
O16: =IF(A16="","",IF(AND(A17=A16,B17=B16),"",SUM($N$2:N16)-SUM($O$2:O15))) -> 
O17: =IF(A17="","",IF(AND(A18=A17,B18=B17),"",SUM($N$2:N17)-SUM($O$2:O16))) -> 
J18: =IF(AND(F18="",D18="",H18=""),"",IF(AND(F18="",D18=""),H18,IF(F18="",(C18/1000)*(D18/1000)*E18,(C18/1000)*(D18/1000)*E18*F18))) ->  | N18: =IF(J18="","",J18*M18) ->  | O18: =IF(A18="","",IF(AND(A19=A18,B19=B18),"",SUM($N$2:N18)-SUM($O$2:O17))) -> 
N19: =IF(J19="","",J19*M19) ->  | O19: =IF(A19="","",IF(AND(A20=A19,B20=B19),"",SUM($N$2:N19)-SUM($O$2:O18))) -> 
N20: =IF(J20="","",J20*M20) ->  | O20: =IF(A20="","",IF(AND(A21=A20,B21=B20),"",SUM($N$2:N20)-SUM($O$2:O19))) -> 
N21: =IF(J21="","",J21*M21) ->  | O21: =IF(A21="","",IF(AND(A22=A21,B22=B21),"",SUM($N$2:N21)-SUM($O$2:O20))) -> 
N22: =IF(J22="","",J22*M22) ->  | O22: =IF(A22="","",IF(AND(A23=A22,B23=B22),"",SUM($N$2:N22)-SUM($O$2:O21))) -> 
N23: =IF(J23="","",J23*M23) ->  | O23: =IF(A23="","",IF(AND(A24=A23,B24=B23),"",SUM($N$2:N23)-SUM($O$2:O22))) -> 
N24: =IF(J24="","",J24*M24) ->  | O24: =IF(A24="","",IF(AND(A25=A24,B25=B24),"",SUM($N$2:N24)-SUM($O$2:O23))) -> 
N25: =IF(J25="","",J25*M25) ->  | O25: =IF(A25="","",IF(AND(A26=A25,B26=B25),"",SUM($N$2:N25)-SUM($O$2:O24))) -> 
N26: =IF(J26="","",J26*M26) ->  | O26: =IF(A26="","",IF(AND(A27=A26,B27=B26),"",SUM($N$2:N26)-SUM($O$2:O25))) -> 
N27: =IF(J27="","",J27*M27) ->  | O27: =IF(A27="","",IF(AND(A28=A27,B28=B27),"",SUM($N$2:N27)-SUM($O$2:O26))) -> 
N28: =IF(J28="","",J28*M28) ->  | O28: =IF(A28="","",IF(AND(A29=A28,B29=B28),"",SUM($N$2:N28)-SUM($O$2:O27))) -> 
N29: =IF(J29="","",J29*M29) ->  | O29: =IF(A29="","",IF(AND(A30=A29,B30=B29),"",SUM($N$2:N29)-SUM($O$2:O28))) -> 
N30: =IF(J30="","",J30*M30) ->  | O30: =IF(A30="","",IF(AND(A31=A30,B31=B30),"",SUM($N$2:N30)-SUM($O$2:O29))) -> 
N31: =IF(J31="","",J31*M31) ->  | O31: =IF(A31="","",IF(AND(A32=A31,B32=B31),"",SUM($N$2:N31)-SUM($O$2:O30))) -> 
N32: =IF(J32="","",J32*M32) ->  | O32: =IF(A32="","",IF(AND(A33=A32,B33=B32),"",SUM($N$2:N32)-SUM($O$2:O31))) -> 
N33: =IF(J33="","",J33*M33) ->  | O33: =IF(A33="","",IF(AND(A34=A33,B34=B33),"",SUM($N$2:N33)-SUM($O$2:O32))) -> 
N34: =IF(J34="","",J34*M34) ->  | O34: =IF(A34="","",IF(AND(A35=A34,B35=B34),"",SUM($N$2:N34)-SUM($O$2:O33))) -> 
N35: =IF(J35="","",J35*M35) ->  | O35: =IF(A35="","",IF(AND(A36=A35,B36=B35),"",SUM($N$2:N35)-SUM($O$2:O34))) -> 
N36: =IF(J36="","",J36*M36) ->  | O36: =IF(A36="","",IF(AND(A37=A36,B37=B36),"",SUM($N$2:N36)-SUM($O$2:O35))) -> 
N37: =IF(J37="","",J37*M37) ->  | O37: =IF(A37="","",IF(AND(A38=A37,B38=B37),"",SUM($N$2:N37)-SUM($O$2:O36))) -> 
N38: =IF(J38="","",J38*M38) ->  | O38: =IF(A38="","",IF(AND(A39=A38,B39=B38),"",SUM($N$2:N38)-SUM($O$2:O37))) -> 
N39: =IF(J39="","",J39*M39) ->  | O39: =IF(A39="","",IF(AND(A40=A39,B40=B39),"",SUM($N$2:N39)-SUM($O$2:O38))) -> 
N40: =IF(J40="","",J40*M40) ->  | O40: =IF(A40="","",IF(AND(A41=A40,B41=B40),"",SUM($N$2:N40)-SUM($O$2:O39))) -> 
N41: =IF(J41="","",J41*M41) ->  | O41: =IF(A41="","",IF(AND(A42=A41,B42=B41),"",SUM($N$2:N41)-SUM($O$2:O40))) -> 
N42: =IF(J42="","",J42*M42) ->  | O42: =IF(A42="","",IF(AND(A43=A42,B43=B42),"",SUM($N$2:N42)-SUM($O$2:O41))) -> 
N43: =IF(J43="","",J43*M43) ->  | O43: =IF(A43="","",IF(AND(A44=A43,B44=B43),"",SUM($N$2:N43)-SUM($O$2:O42))) -> 
N44: =IF(J44="","",J44*M44) ->  | O44: =IF(A44="","",IF(AND(A45=A44,B45=B44),"",SUM($N$2:N44)-SUM($O$2:O43))) -> 
N45: =IF(J45="","",J45*M45) ->  | O45: =IF(A45="","",IF(AND(A46=A45,B46=B45),"",SUM($N$2:N45)-SUM($O$2:O44))) -> 
N46: =IF(J46="","",J46*M46) ->  | O46: =IF(A46="","",IF(AND(A47=A46,B47=B46),"",SUM($N$2:N46)-SUM($O$2:O45))) -> 
N47: =IF(J47="","",J47*M47) ->  | O47: =IF(A47="","",IF(AND(A48=A47,B48=B47),"",SUM($N$2:N47)-SUM($O$2:O46))) -> 
N48: =IF(J48="","",J48*M48) ->  | O48: =IF(A48="","",IF(AND(A49=A48,B49=B48),"",SUM($N$2:N48)-SUM($O$2:O47))) -> 
N49: =IF(J49="","",J49*M49) ->  | O49: =IF(A49="","",IF(AND(A50=A49,B50=B49),"",SUM($N$2:N49)-SUM($O$2:O48))) -> 
N50: =IF(J50="","",J50*M50) ->  | O50: =IF(A50="","",IF(AND(A51=A50,B51=B50),"",SUM($N$2:N50)-SUM($O$2:O49))) -> 
N51: =IF(J51="","",J51*M51) ->  | O51: =IF(A51="","",IF(AND(A52=A51,B52=B51),"",SUM($N$2:N51)-SUM($O$2:O50))) -> 
N52: =IF(J52="","",J52*M52) ->  | O52: =IF(A52="","",IF(AND(A53=A52,B53=B52),"",SUM($N$2:N52)-SUM($O$2:O51))) -> 
N53: =IF(J53="","",J53*M53) ->  | O53: =IF(A53="","",IF(AND(A54=A53,B54=B53),"",SUM($N$2:N53)-SUM($O$2:O52))) -> 
N54: =IF(J54="","",J54*M54) ->  | O54: =IF(A54="","",IF(AND(A55=A54,B55=B54),"",SUM($N$2:N54)-SUM($O$2:O53))) -> 
N55: =IF(J55="","",J55*M55) ->  | O55: =IF(A55="","",IF(AND(A56=A55,B56=B55),"",SUM($N$2:N55)-SUM($O$2:O54))) -> 
N56: =IF(J56="","",J56*M56) ->  | O56: =IF(A56="","",IF(AND(A57=A56,B57=B56),"",SUM($N$2:N56)-SUM($O$2:O55))) -> 
N57: =IF(J57="","",J57*M57) ->  | O57: =IF(A57="","",IF(AND(A58=A57,B58=B57),"",SUM($N$2:N57)-SUM($O$2:O56))) -> 
N58: =IF(J58="","",J58*M58) ->  | O58: =IF(A58="","",IF(AND(A59=A58,B59=B58),"",SUM($N$2:N58)-SUM($O$2:O57))) -> 
N59: =IF(J59="","",J59*M59) ->  | O59: =IF(A59="","",IF(AND(A60=A59,B60=B59),"",SUM($N$2:N59)-SUM($O$2:O58))) -> 
N60: =IF(J60="","",J60*M60) ->  | O60: =IF(A60="","",IF(AND(A61=A60,B61=B60),"",SUM($N$2:N60)-SUM($O$2:O59))) -> 
N61: =IF(J61="","",J61*M61) ->  | O61: =IF(A61="","",IF(AND(A62=A61,B62=B61),"",SUM($N$2:N61)-SUM($O$2:O60))) -> 
N62: =IF(J62="","",J62*M62) ->  | O62: =IF(A62="","",IF(AND(A63=A62,B63=B62),"",SUM($N$2:N62)-SUM($O$2:O61))) -> 
N63: =IF(J63="","",J63*M63) ->  | O63: =IF(A63="","",IF(AND(A64=A63,B64=B63),"",SUM($N$2:N63)-SUM($O$2:O62))) -> 
N64: =IF(J64="","",J64*M64) ->  | O64: =IF(A64="","",IF(AND(A65=A64,B65=B64),"",SUM($N$2:N64)-SUM($O$2:O63))) -> 
N65: =IF(J65="","",J65*M65) ->  | O65: =IF(A65="","",IF(AND(A66=A65,B66=B65),"",SUM($N$2:N65)-SUM($O$2:O64))) -> 
N66: =IF(J66="","",J66*M66) ->  | O66: =IF(A66="","",IF(AND(A67=A66,B67=B66),"",SUM($N$2:N66)-SUM($O$2:O65))) -> 
N67: =IF(J67="","",J67*M67) ->  | O67: =IF(A67="","",IF(AND(A68=A67,B68=B67),"",SUM($N$2:N67)-SUM($O$2:O66))) -> 
N68: =IF(J68="","",J68*M68) ->  | O68: =IF(A68="","",IF(AND(A69=A68,B69=B68),"",SUM($N$2:N68)-SUM($O$2:O67))) -> 
N69: =IF(J69="","",J69*M69) ->  | O69: =IF(A69="","",IF(AND(A70=A69,B70=B69),"",SUM($N$2:N69)-SUM($O$2:O68))) -> 
N70: =IF(J70="","",J70*M70) ->  | O70: =IF(A70="","",IF(AND(A71=A70,B71=B70),"",SUM($N$2:N70)-SUM($O$2:O69))) -> 
N71: =IF(J71="","",J71*M71) ->  | O71: =IF(A71="","",IF(AND(A72=A71,B72=B71),"",SUM($N$2:N71)-SUM($O$2:O70))) -> 
N72: =IF(J72="","",J72*M72) ->  | O72: =IF(A72="","",IF(AND(A73=A72,B73=B72),"",SUM($N$2:N72)-SUM($O$2:O71))) -> 
N73: =IF(J73="","",J73*M73) ->  | O73: =IF(A73="","",IF(AND(A74=A73,B74=B73),"",SUM($N$2:N73)-SUM($O$2:O72))) -> 
N74: =IF(J74="","",J74*M74) ->  | O74: =IF(A74="","",IF(AND(A75=A74,B75=B74),"",SUM($N$2:N74)-SUM($O$2:O73))) -> 
N75: =IF(J75="","",J75*M75) ->  | O75: =IF(A75="","",IF(AND(A76=A75,B76=B75),"",SUM($N$2:N75)-SUM($O$2:O74))) -> 
N76: =IF(J76="","",J76*M76) ->  | O76: =IF(A76="","",IF(AND(A77=A76,B77=B76),"",SUM($N$2:N76)-SUM($O$2:O75))) -> 
N77: =IF(J77="","",J77*M77) ->  | O77: =IF(A77="","",IF(AND(A78=A77,B78=B77),"",SUM($N$2:N77)-SUM($O$2:O76))) -> 
N78: =IF(J78="","",J78*M78) ->  | O78: =IF(A78="","",IF(AND(A79=A78,B79=B78),"",SUM($N$2:N78)-SUM($O$2:O77))) -> 
N79: =IF(J79="","",J79*M79) ->  | O79: =IF(A79="","",IF(AND(A80=A79,B80=B79),"",SUM($N$2:N79)-SUM($O$2:O78))) -> 
N80: =IF(J80="","",J80*M80) ->  | O80: =IF(A80="","",IF(AND(A81=A80,B81=B80),"",SUM($N$2:N80)-SUM($O$2:O79))) -> 
N81: =IF(J81="","",J81*M81) ->  | O81: =IF(A81="","",IF(AND(A82=A81,B82=B81),"",SUM($N$2:N81)-SUM($O$2:O80))) -> 
N82: =IF(J82="","",J82*M82) ->  | O82: =IF(A82="","",IF(AND(A83=A82,B83=B82),"",SUM($N$2:N82)-SUM($O$2:O81))) -> 
N83: =IF(J83="","",J83*M83) ->  | O83: =IF(A83="","",IF(AND(A84=A83,B84=B83),"",SUM($N$2:N83)-SUM($O$2:O82))) -> 
N84: =IF(J84="","",J84*M84) ->  | O84: =IF(A84="","",IF(AND(A85=A84,B85=B84),"",SUM($N$2:N84)-SUM($O$2:O83))) -> 
N85: =IF(J85="","",J85*M85) ->  | O85: =IF(A85="","",IF(AND(A86=A85,B86=B85),"",SUM($N$2:N85)-SUM($O$2:O84))) -> 
N86: =IF(J86="","",J86*M86) ->  | O86: =IF(A86="","",IF(AND(A87=A86,B87=B86),"",SUM($N$2:N86)-SUM($O$2:O85))) -> 
N87: =IF(J87="","",J87*M87) ->  | O87: =IF(A87="","",IF(AND(A88=A87,B88=B87),"",SUM($N$2:N87)-SUM($O$2:O86))) -> 
N88: =IF(J88="","",J88*M88) ->  | O88: =IF(A88="","",IF(AND(A89=A88,B89=B88),"",SUM($N$2:N88)-SUM($O$2:O87))) -> 
N89: =IF(J89="","",J89*M89) ->  | O89: =IF(A89="","",IF(AND(A90=A89,B90=B89),"",SUM($N$2:N89)-SUM($O$2:O88))) -> 
N90: =IF(J90="","",J90*M90) ->  | O90: =IF(A90="","",IF(AND(A91=A90,B91=B90),"",SUM($N$2:N90)-SUM($O$2:O89))) -> 
N91: =IF(J91="","",J91*M91) ->  | O91: =IF(A91="","",IF(AND(A92=A91,B92=B91),"",SUM($N$2:N91)-SUM($O$2:O90))) -> 
N92: =IF(J92="","",J92*M92) ->  | O92: =IF(A92="","",IF(AND(A93=A92,B93=B92),"",SUM($N$2:N92)-SUM($O$2:O91))) -> 
N93: =IF(J93="","",J93*M93) ->  | O93: =IF(A93="","",IF(AND(A94=A93,B94=B93),"",SUM($N$2:N93)-SUM($O$2:O92))) -> 
N94: =IF(J94="","",J94*M94) ->  | O94: =IF(A94="","",IF(AND(A95=A94,B95=B94),"",SUM($N$2:N94)-SUM($O$2:O93))) -> 
N95: =IF(J95="","",J95*M95) ->  | O95: =IF(A95="","",IF(AND(A96=A95,B96=B95),"",SUM($N$2:N95)-SUM($O$2:O94))) -> 
N96: =IF(J96="","",J96*M96) ->  | O96: =IF(A96="","",IF(AND(A97=A96,B97=B96),"",SUM($N$2:N96)-SUM($O$2:O95))) -> 
N97: =IF(J97="","",J97*M97) ->  | O97: =IF(A97="","",IF(AND(A98=A97,B98=B97),"",SUM($N$2:N97)-SUM($O$2:O96))) -> 
N98: =IF(J98="","",J98*M98) ->  | O98: =IF(A98="","",IF(AND(A99=A98,B99=B98),"",SUM($N$2:N98)-SUM($O$2:O97))) -> 
N99: =IF(J99="","",J99*M99) ->  | O99: =IF(A99="","",IF(AND(A100=A99,B100=B99),"",SUM($N$2:N99)-SUM($O$2:O98))) -> 
N100: =IF(J100="","",J100*M100) ->  | O100: =IF(A100="","",IF(AND(A101=A100,B101=B100),"",SUM($N$2:N100)-SUM($O$2:O99))) -> 
N101: =IF(J101="","",J101*M101) ->  | O101: =IF(A101="","",IF(AND(A102=A101,B102=B101),"",SUM($N$2:N101)-SUM($O$2:O100))) -> 
N102: =IF(J102="","",J102*M102) ->  | O102: =IF(A102="","",IF(AND(A103=A102,B103=B102),"",SUM($N$2:N102)-SUM($O$2:O101))) -> 
N103: =IF(J103="","",J103*M103) ->  | O103: =IF(A103="","",IF(AND(A104=A103,B104=B103),"",SUM($N$2:N103)-SUM($O$2:O102))) -> 
N104: =IF(J104="","",J104*M104) ->  | O104: =IF(A104="","",IF(AND(A105=A104,B105=B104),"",SUM($N$2:N104)-SUM($O$2:O103))) -> 
N105: =IF(J105="","",J105*M105) ->  | O105: =IF(A105="","",IF(AND(A106=A105,B106=B105),"",SUM($N$2:N105)-SUM($O$2:O104))) -> 
N106: =IF(J106="","",J106*M106) ->  | O106: =IF(A106="","",IF(AND(A107=A106,B107=B106),"",SUM($N$2:N106)-SUM($O$2:O105))) -> 
N107: =IF(J107="","",J107*M107) ->  | O107: =IF(A107="","",IF(AND(A108=A107,B108=B107),"",SUM($N$2:N107)-SUM($O$2:O106))) -> 
N108: =IF(J108="","",J108*M108) ->  | O108: =IF(A108="","",IF(AND(A109=A108,B109=B108),"",SUM($N$2:N108)-SUM($O$2:O107))) -> 
N109: =IF(J109="","",J109*M109) ->  | O109: =IF(A109="","",IF(AND(A110=A109,B110=B109),"",SUM($N$2:N109)-SUM($O$2:O108))) -> 
N110: =IF(J110="","",J110*M110) ->  | O110: =IF(A110="","",IF(AND(A111=A110,B111=B110),"",SUM($N$2:N110)-SUM($O$2:O109))) -> 
N111: =IF(J111="","",J111*M111) ->  | O111: =IF(A111="","",IF(AND(A112=A111,B112=B111),"",SUM($N$2:N111)-SUM($O$2:O110))) -> 
N112: =IF(J112="","",J112*M112) ->  | O112: =IF(A112="","",IF(AND(A113=A112,B113=B112),"",SUM($N$2:N112)-SUM($O$2:O111))) -> 
N113: =IF(J113="","",J113*M113) ->  | O113: =IF(A113="","",IF(AND(A114=A113,B114=B113),"",SUM($N$2:N113)-SUM($O$2:O112))) -> 
N114: =IF(J114="","",J114*M114) ->  | O114: =IF(A114="","",IF(AND(A115=A114,B115=B114),"",SUM($N$2:N114)-SUM($O$2:O113))) -> 
N115: =IF(J115="","",J115*M115) ->  | O115: =IF(A115="","",IF(AND(A116=A115,B116=B115),"",SUM($N$2:N115)-SUM($O$2:O114))) -> 
N116: =IF(J116="","",J116*M116) ->  | O116: =IF(A116="","",IF(AND(A117=A116,B117=B116),"",SUM($N$2:N116)-SUM($O$2:O115))) -> 
N117: =IF(J117="","",J117*M117) ->  | O117: =IF(A117="","",IF(AND(A118=A117,B118=B117),"",SUM($N$2:N117)-SUM($O$2:O116))) -> 
N118: =IF(J118="","",J118*M118) ->  | O118: =IF(A118="","",IF(AND(A119=A118,B119=B118),"",SUM($N$2:N118)-SUM($O$2:O117))) -> 
N119: =IF(J119="","",J119*M119) ->  | O119: =IF(A119="","",IF(AND(A120=A119,B120=B119),"",SUM($N$2:N119)-SUM($O$2:O118))) -> 
N120: =IF(J120="","",J120*M120) ->  | O120: =IF(A120="","",IF(AND(A121=A120,B121=B120),"",SUM($N$2:N120)-SUM($O$2:O119))) -> 
N121: =IF(J121="","",J121*M121) ->  | O121: =IF(A121="","",IF(AND(A122=A121,B122=B121),"",SUM($N$2:N121)-SUM($O$2:O120))) -> 
N122: =IF(J122="","",J122*M122) ->  | O122: =IF(A122="","",IF(AND(A123=A122,B123=B122),"",SUM($N$2:N122)-SUM($O$2:O121))) -> 
N123: =IF(J123="","",J123*M123) ->  | O123: =IF(A123="","",IF(AND(A124=A123,B124=B123),"",SUM($N$2:N123)-SUM($O$2:O122))) -> 
N124: =IF(J124="","",J124*M124) ->  | O124: =IF(A124="","",IF(AND(A125=A124,B125=B124),"",SUM($N$2:N124)-SUM($O$2:O123))) -> 
N125: =IF(J125="","",J125*M125) ->  | O125: =IF(A125="","",IF(AND(A126=A125,B126=B125),"",SUM($N$2:N125)-SUM($O$2:O124))) -> 
N126: =IF(J126="","",J126*M126) ->  | O126: =IF(A126="","",IF(AND(A127=A126,B127=B126),"",SUM($N$2:N126)-SUM($O$2:O125))) -> 
N127: =IF(J127="","",J127*M127) ->  | O127: =IF(A127="","",IF(AND(A128=A127,B128=B127),"",SUM($N$2:N127)-SUM($O$2:O126))) -> 
N128: =IF(J128="","",J128*M128) ->  | O128: =IF(A128="","",IF(AND(A129=A128,B129=B128),"",SUM($N$2:N128)-SUM($O$2:O127))) -> 
N129: =IF(J129="","",J129*M129) ->  | O129: =IF(A129="","",IF(AND(A130=A129,B130=B129),"",SUM($N$2:N129)-SUM($O$2:O128))) -> 
N130: =IF(J130="","",J130*M130) ->  | O130: =IF(A130="","",IF(AND(A131=A130,B131=B130),"",SUM($N$2:N130)-SUM($O$2:O129))) -> 
N131: =IF(J131="","",J131*M131) ->  | O131: =IF(A131="","",IF(AND(A132=A131,B132=B131),"",SUM($N$2:N131)-SUM($O$2:O130))) -> 
N132: =IF(J132="","",J132*M132) ->  | O132: =IF(A132="","",IF(AND(A133=A132,B133=B132),"",SUM($N$2:N132)-SUM($O$2:O131))) -> 
N133: =IF(J133="","",J133*M133) ->  | O133: =IF(A133="","",IF(AND(A134=A133,B134=B133),"",SUM($N$2:N133)-SUM($O$2:O132))) -> 
N134: =IF(J134="","",J134*M134) ->  | O134: =IF(A134="","",IF(AND(A135=A134,B135=B134),"",SUM($N$2:N134)-SUM($O$2:O133))) -> 
N135: =IF(J135="","",J135*M135) ->  | O135: =IF(A135="","",IF(AND(A136=A135,B136=B135),"",SUM($N$2:N135)-SUM($O$2:O134))) -> 
N136: =IF(J136="","",J136*M136) ->  | O136: =IF(A136="","",IF(AND(A137=A136,B137=B136),"",SUM($N$2:N136)-SUM($O$2:O135))) -> 
N137: =IF(J137="","",J137*M137) ->  | O137: =IF(A137="","",IF(AND(A138=A137,B138=B137),"",SUM($N$2:N137)-SUM($O$2:O136))) -> 
N138: =IF(J138="","",J138*M138) ->  | O138: =IF(A138="","",IF(AND(A139=A138,B139=B138),"",SUM($N$2:N138)-SUM($O$2:O137))) -> 
N139: =IF(J139="","",J139*M139) ->  | O139: =IF(A139="","",IF(AND(A140=A139,B140=B139),"",SUM($N$2:N139)-SUM($O$2:O138))) -> 
N140: =IF(J140="","",J140*M140) ->  | O140: =IF(A140="","",IF(AND(A141=A140,B141=B140),"",SUM($N$2:N140)-SUM($O$2:O139))) -> 
N141: =IF(J141="","",J141*M141) ->  | O141: =IF(A141="","",IF(AND(A142=A141,B142=B141),"",SUM($N$2:N141)-SUM($O$2:O140))) -> 
N142: =IF(J142="","",J142*M142) ->  | O142: =IF(A142="","",IF(AND(A143=A142,B143=B142),"",SUM($N$2:N142)-SUM($O$2:O141))) -> 
N143: =IF(J143="","",J143*M143) ->  | O143: =IF(A143="","",IF(AND(A144=A143,B144=B143),"",SUM($N$2:N143)-SUM($O$2:O142))) -> 
N144: =IF(J144="","",J144*M144) ->  | O144: =IF(A144="","",IF(AND(A145=A144,B145=B144),"",SUM($N$2:N144)-SUM($O$2:O143))) -> 
N145: =IF(J145="","",J145*M145) ->  | O145: =IF(A145="","",IF(AND(A146=A145,B146=B145),"",SUM($N$2:N145)-SUM($O$2:O144))) -> 
N146: =IF(J146="","",J146*M146) ->  | O146: =IF(A146="","",IF(AND(A147=A146,B147=B146),"",SUM($N$2:N146)-SUM($O$2:O145))) -> 
N147: =IF(J147="","",J147*M147) ->  | O147: =IF(A147="","",IF(AND(A148=A147,B148=B147),"",SUM($N$2:N147)-SUM($O$2:O146))) -> 
N148: =IF(J148="","",J148*M148) ->  | O148: =IF(A148="","",IF(AND(A149=A148,B149=B148),"",SUM($N$2:N148)-SUM($O$2:O147))) -> 
N149: =IF(J149="","",J149*M149) ->  | O149: =IF(A149="","",IF(AND(A150=A149,B150=B149),"",SUM($N$2:N149)-SUM($O$2:O148))) -> 
N150: =IF(J150="","",J150*M150) ->  | O150: =IF(A150="","",IF(AND(A151=A150,B151=B150),"",SUM($N$2:N150)-SUM($O$2:O149))) -> 
N151: =IF(J151="","",J151*M151) ->  | O151: =IF(A151="","",IF(AND(A152=A151,B152=B151),"",SUM($N$2:N151)-SUM($O$2:O150))) -> 
N152: =IF(J152="","",J152*M152) ->  | O152: =IF(A152="","",IF(AND(A153=A152,B153=B152),"",SUM($N$2:N152)-SUM($O$2:O151))) -> 
N153: =IF(J153="","",J153*M153) ->  | O153: =IF(A153="","",IF(AND(A154=A153,B154=B153),"",SUM($N$2:N153)-SUM($O$2:O152))) -> 
N154: =IF(J154="","",J154*M154) ->  | O154: =IF(A154="","",IF(AND(A155=A154,B155=B154),"",SUM($N$2:N154)-SUM($O$2:O153))) -> 
N155: =IF(J155="","",J155*M155) ->  | O155: =IF(A155="","",IF(AND(A156=A155,B156=B155),"",SUM($N$2:N155)-SUM($O$2:O154))) -> 
N156: =IF(J156="","",J156*M156) ->  | O156: =IF(A156="","",IF(AND(A157=A156,B157=B156),"",SUM($N$2:N156)-SUM($O$2:O155))) -> 
N157: =IF(J157="","",J157*M157) ->  | O157: =IF(A157="","",IF(AND(A158=A157,B158=B157),"",SUM($N$2:N157)-SUM($O$2:O156))) -> 
N158: =IF(J158="","",J158*M158) ->  | O158: =IF(A158="","",IF(AND(A159=A158,B159=B158),"",SUM($N$2:N158)-SUM($O$2:O157))) -> 
N159: =IF(J159="","",J159*M159) ->  | O159: =IF(A159="","",IF(AND(A160=A159,B160=B159),"",SUM($N$2:N159)-SUM($O$2:O158))) -> 
N160: =IF(J160="","",J160*M160) ->  | O160: =IF(A160="","",IF(AND(A161=A160,B161=B160),"",SUM($N$2:N160)-SUM($O$2:O159))) -> 
N161: =IF(J161="","",J161*M161) ->  | O161: =IF(A161="","",IF(AND(A162=A161,B162=B161),"",SUM($N$2:N161)-SUM($O$2:O160))) -> 
N162: =IF(J162="","",J162*M162) ->  | O162: =IF(A162="","",IF(AND(A163=A162,B163=B162),"",SUM($N$2:N162)-SUM($O$2:O161))) -> 
N163: =IF(J163="","",J163*M163) ->  | O163: =IF(A163="","",IF(AND(A164=A163,B164=B163),"",SUM($N$2:N163)-SUM($O$2:O162))) -> 
N164: =IF(J164="","",J164*M164) ->  | O164: =IF(A164="","",IF(AND(A165=A164,B165=B164),"",SUM($N$2:N164)-SUM($O$2:O163))) -> 
N165: =IF(J165="","",J165*M165) ->  | O165: =IF(A165="","",IF(AND(A166=A165,B166=B165),"",SUM($N$2:N165)-SUM($O$2:O164))) -> 
N166: =IF(J166="","",J166*M166) ->  | O166: =IF(A166="","",IF(AND(A167=A166,B167=B166),"",SUM($N$2:N166)-SUM($O$2:O165))) -> 
N167: =IF(J167="","",J167*M167) ->  | O167: =IF(A167="","",IF(AND(A168=A167,B168=B167),"",SUM($N$2:N167)-SUM($O$2:O166))) -> 
N168: =IF(J168="","",J168*M168) ->  | O168: =IF(A168="","",IF(AND(A169=A168,B169=B168),"",SUM($N$2:N168)-SUM($O$2:O167))) -> 
N169: =IF(J169="","",J169*M169) ->  | O169: =IF(A169="","",IF(AND(A170=A169,B170=B169),"",SUM($N$2:N169)-SUM($O$2:O168))) -> 
N170: =IF(J170="","",J170*M170) ->  | O170: =IF(A170="","",IF(AND(A171=A170,B171=B170),"",SUM($N$2:N170)-SUM($O$2:O169))) -> 
N171: =IF(J171="","",J171*M171) ->  | O171: =IF(A171="","",IF(AND(A172=A171,B172=B171),"",SUM($N$2:N171)-SUM($O$2:O170))) -> 
N172: =IF(J172="","",J172*M172) ->  | O172: =IF(A172="","",IF(AND(A173=A172,B173=B172),"",SUM($N$2:N172)-SUM($O$2:O171))) -> 
N173: =IF(J173="","",J173*M173) ->  | O173: =IF(A173="","",IF(AND(A174=A173,B174=B173),"",SUM($N$2:N173)-SUM($O$2:O172))) -> 
N174: =IF(J174="","",J174*M174) ->  | O174: =IF(A174="","",IF(AND(A175=A174,B175=B174),"",SUM($N$2:N174)-SUM($O$2:O173))) -> 
N175: =IF(J175="","",J175*M175) ->  | O175: =IF(A175="","",IF(AND(A176=A175,B176=B175),"",SUM($N$2:N175)-SUM($O$2:O174))) -> 
N176: =IF(J176="","",J176*M176) ->  | O176: =IF(A176="","",IF(AND(A177=A176,B177=B176),"",SUM($N$2:N176)-SUM($O$2:O175))) -> 
N177: =IF(J177="","",J177*M177) ->  | O177: =IF(A177="","",IF(AND(A178=A177,B178=B177),"",SUM($N$2:N177)-SUM($O$2:O176))) -> 
N178: =IF(J178="","",J178*M178) ->  | O178: =IF(A178="","",IF(AND(A179=A178,B179=B178),"",SUM($N$2:N178)-SUM($O$2:O177))) -> 
N179: =IF(J179="","",J179*M179) ->  | O179: =IF(A179="","",IF(AND(A180=A179,B180=B179),"",SUM($N$2:N179)-SUM($O$2:O178))) -> 
N180: =IF(J180="","",J180*M180) ->  | O180: =IF(A180="","",IF(AND(A181=A180,B181=B180),"",SUM($N$2:N180)-SUM($O$2:O179))) -> 
N181: =IF(J181="","",J181*M181) ->  | O181: =IF(A181="","",IF(AND(A182=A181,B182=B181),"",SUM($N$2:N181)-SUM($O$2:O180))) -> 
N182: =IF(J182="","",J182*M182) ->  | O182: =IF(A182="","",IF(AND(A183=A182,B183=B182),"",SUM($N$2:N182)-SUM($O$2:O181))) -> 
N183: =IF(J183="","",J183*M183) ->  | O183: =IF(A183="","",IF(AND(A184=A183,B184=B183),"",SUM($N$2:N183)-SUM($O$2:O182))) -> 
N184: =IF(J184="","",J184*M184) ->  | O184: =IF(A184="","",IF(AND(A185=A184,B185=B184),"",SUM($N$2:N184)-SUM($O$2:O183))) -> 
N185: =IF(J185="","",J185*M185) ->  | O185: =IF(A185="","",IF(AND(A186=A185,B186=B185),"",SUM($N$2:N185)-SUM($O$2:O184))) -> 
N186: =IF(J186="","",J186*M186) ->  | O186: =IF(A186="","",IF(AND(A187=A186,B187=B186),"",SUM($N$2:N186)-SUM($O$2:O185))) -> 
N187: =IF(J187="","",J187*M187) ->  | O187: =IF(A187="","",IF(AND(A188=A187,B188=B187),"",SUM($N$2:N187)-SUM($O$2:O186))) -> 
N188: =IF(J188="","",J188*M188) ->  | O188: =IF(A188="","",IF(AND(A189=A188,B189=B188),"",SUM($N$2:N188)-SUM($O$2:O187))) -> 
N189: =IF(J189="","",J189*M189) ->  | O189: =IF(A189="","",IF(AND(A190=A189,B190=B189),"",SUM($N$2:N189)-SUM($O$2:O188))) -> 
N190: =IF(J190="","",J190*M190) ->  | O190: =IF(A190="","",IF(AND(A191=A190,B191=B190),"",SUM($N$2:N190)-SUM($O$2:O189))) -> 
N191: =IF(J191="","",J191*M191) ->  | O191: =IF(A191="","",IF(AND(A192=A191,B192=B191),"",SUM($N$2:N191)-SUM($O$2:O190))) -> 
N192: =IF(J192="","",J192*M192) ->  | O192: =IF(A192="","",IF(AND(A193=A192,B193=B192),"",SUM($N$2:N192)-SUM($O$2:O191))) -> 
N193: =IF(J193="","",J193*M193) ->  | O193: =IF(A193="","",IF(AND(A194=A193,B194=B193),"",SUM($N$2:N193)-SUM($O$2:O192))) -> 
N194: =IF(J194="","",J194*M194) ->  | O194: =IF(A194="","",IF(AND(A195=A194,B195=B194),"",SUM($N$2:N194)-SUM($O$2:O193))) -> 
N195: =IF(J195="","",J195*M195) ->  | O195: =IF(A195="","",IF(AND(A196=A195,B196=B195),"",SUM($N$2:N195)-SUM($O$2:O194))) -> 
N196: =IF(J196="","",J196*M196) ->  | O196: =IF(A196="","",IF(AND(A197=A196,B197=B196),"",SUM($N$2:N196)-SUM($O$2:O195))) -> 
N197: =IF(J197="","",J197*M197) ->  | O197: =IF(A197="","",IF(AND(A198=A197,B198=B197),"",SUM($N$2:N197)-SUM($O$2:O196))) -> 
N198: =IF(J198="","",J198*M198) ->  | O198: =IF(A198="","",IF(AND(A199=A198,B199=B198),"",SUM($N$2:N198)-SUM($O$2:O197))) -> 
N199: =IF(J199="","",J199*M199) ->  | O199: =IF(A199="","",IF(AND(A200=A199,B200=B199),"",SUM($N$2:N199)-SUM($O$2:O198))) -> 
N200: =IF(J200="","",J200*M200) ->  | O200: =IF(A200="","",IF(AND(A201=A200,B201=B200),"",SUM($N$2:N200)-SUM($O$2:O199))) -> 
... 1024 more rows
